{"text_format":"1","workbook":"xlsx","n_sheets":4,"sheets":["SOLICITUD","RESPUESTA","Hoja2","MUNICIPIOS"],"not_rendered":{"charts":0,"images":1,"macros":1,"external_links":0,"defined_names":9,"comments":0,"pivot_tables":0},"unopened":[],"bounds":{"document_bytes":16777216,"sheet_cells":100000,"rows_first":2000,"rows_last":500,"rows_between":2000,"halvings":0,"cell_chars":16384,"cell_head_chars":4096},"cells_cut":0,"cells_raw":0,"read":"whole","date_system":"1900"}

{"sheet":"SOLICITUD","index":0,"n_rows":78,"n_cols":61,"rows_kept":78,"cut":false,"hidden":false,"merged":[[77,1,77,6],[32,1,32,66],[74,3,74,39],[75,3,75,39],[62,1,69,66],[70,1,73,66],[44,2,44,20],[39,2,41,65],[44,22,44,28],[44,30,44,37],[44,39,44,45],[42,30,42,37],[42,39,42,45],[44,47,44,65],[76,1,76,5],[59,7,59,32],[12,19,12,31],[12,47,12,65],[10,19,10,31],[1,60,4,66],[1,8,4,59],[6,35,6,66],[6,1,6,32],[8,2,8,15],[8,19,8,21],[8,28,8,31],[8,23,8,26],[10,47,10,65],[8,47,8,65],[22,2,22,17],[18,2,18,17],[20,2,20,17],[22,18,22,31],[18,18,18,65],[20,18,20,65],[79,1,79,66],[24,2,24,16],[24,18,24,31],[42,2,42,19],[42,22,42,28],[75,46,75,47],[75,48,75,49],[75,52,75,53],[75,54,75,55],[77,7,77,36],[76,6,76,40],[28,2,29,15],[28,18,28,21],[60,7,60,32],[51,36,51,66],[48,22,48,28],[22,36,22,51],[22,52,22,65],[37,22,37,65],[48,47,48,65],[48,30,48,45],[42,47,42,65],[46,30,46,45],[46,47,46,65],[24,36,24,51],[24,52,24,65],[35,4,35,34],[46,2,46,19],[46,22,46,28],[37,2,37,7],[37,9,37,20],[48,2,48,20],[26,2,26,16],[26,18,26,31],[26,36,26,51],[26,52,26,65],[60,42,60,65],[35,54,35,65],[35,35,35,53],[28,36,28,51],[28,52,28,65],[51,2,51,32],[59,42,59,66]]}
[]
[null,null,null,null,null,null,null,null,"FORMATO DE SOLICITUD DE REVISIÓN DE PROYECTO DE CONEXIÓN",null,null,null,null,null,null,null,null,null,null,null,null,null,null,null,null,null,null,null,null,null,null,null,null,null,null,null,null,null,null,null,null,null,null,null,null,null,null,null,null,null,null,null,null,null,null,null,null,null,null,null,"Página \n1 de 1"]
[]
[]
[]
[]
[null,"ESPACIO EXCLUSIVO ENEL-CODENSA",null,null,null,null,null,null,null,null,null,null,null,null,null,null,null,null,null,null,null,null,null,null,null,null,null,null,null,null,null,null,null,null,null,"DATOS GENERALES DE LA SOLICITUD"]
[]
[null,null,"FECHA DE SOLICITUD",null,null,null,null,null,null,null,null,null,null,null,null,null,null,null,null,null,null,null,null,null,null,null,null,null,null,null,null,null,null,null,null,null,"No. FACTIBILIDAD"]
[]
[null,null,"No. RADICADO",null,null,null,null,null,null,null,null,null,null,null,null,null,null,null,null,null,null,null,null,null,null,null,null,null,null,null,null,null,null,null,null,null,"TIPO DE SOLICITUD"]
[]
[null,null,"OFICINA DE RADICACIÓN",null,null,null,null,null,null,null,null,null,null,null,null,null,null,null,null,null,null,null,null,null,null,null,null,null,null,null,null,null,null,null,null,null,"TRÁMITE"]
[]
[]
[null,"INFORMACIÓN DEL PROYECTO"]
[]
[]
[null,null,"NOMBRE DEL PROYECTO"]
[]
[null,null,"DIRECCIÓN"]
[]
[null,null,"DEPARTAMENTO",null,null,null,null,null,null,null,null,null,null,null,null,null,null,null,null,null,null,null,null,null,null,null,null,null,null,null,null,null,null,null,null,null,{"$f":"+IF(S23=\"BOGOTÁ\",\"LOCALIDAD\",\"MUNICIPIO\")","v":"MUNICIPIO"}]
[]
[null,null,"TIPO DE USO",null,null,null,null,null,null,null,null,null,null,null,null,null,null,null,null,null,null,null,null,null,null,null,null,null,null,null,null,null,null,null,null,null,"ESTRATO"]
[]
[null,null,"NÚMERO DE CUENTAS",null,null,null,null,null,null,null,null,null,null,null,null,null,null,null,null,null,null,null,null,null,null,null,null,null,null,null,null,null,null,null,null,null,"CARGA INSTALADA"]
[]
[null,null,"¿Aplica licencia de construcción de acuerdo al decreto 1469 de 2010?",null,null,null,null,null,null,null,null,null,null,null,null,null,null,null,null,null,null,null,null,null,null,null,null,null,null,null,null,null,null,null,null,null,"TIPO DE SERIE DEL PROYECTO"]
[]
[]
[]
[null,"INFORMACIÓN DEL PROPIETARIO Y DISEÑADOR"]
[]
[]
[null,null,"Yo, ",null,null,null,null,null,null,null,null,null,null,null,null,null,null,null,null,null,null,null,null,null,null,null,null,null,null,null,null,null,null,null,null,"identificado con cédula de ciudadanía No. "]
[]
[null,null,"en calidad de "]
[]
[null,null,"Autorizo a la empresa diseñadora y/o ingeniero diseñador relacionados a continuación para que me represente ante ENEL-CODENSA, en la gestión del proyecto eléctrico relacionado en la presente solicitud."]
[]
[]
[null,null,"Empresa diseñadora (Si Aplica)",null,null,null,null,null,null,null,null,null,null,null,null,null,null,null,null,null,null,null,"NIT",null,null,null,null,null,null,null,"Celular",null,null,null,null,null,null,null,null,"Teléfono ",null,null,null,null,null,null,null,"Correo Electrónico "]
[]
[]
[]
[null,null,"Nombre Ingeniero Diseñador",null,null,null,null,null,null,null,null,null,null,null,null,null,null,null,null,null,null,null,"Celular",null,null,null,null,null,null,null,"No Matrícula Profesional",null,null,null,null,null,null,null,null,null,null,null,null,null,null,null,null,"Correo Electrónico "]
[]
[]
[]
[]
[null,null,"PROPIETARIO O REPRESENTANTE LEGAL",null,null,null,null,null,null,null,null,null,null,null,null,null,null,null,null,null,null,null,null,null,null,null,null,null,null,null,null,null,null,null,null,null,"INGENIERO DISEÑADOR"]
[]
[]
[]
[]
[]
[null,null,"FIRMA",null,null,null,null,null,null,null,null,null,null,null,null,null,null,null,null,null,null,null,null,null,null,null,null,null,null,null,null,null,null,null,null,null,"FIRMA"]
[]
[null,null,"NOMBRE:",null,null,null,null,null,null,null,null,null,null,null,null,null,null,null,null,null,null,null,null,null,null,null,null,null,null,null,null,null,null,null,null,null,"NOMBRE:"]
[null,null,"C.C.",null,null,null,null,null,null,null,null,null,null,null,null,null,null,null,null,null,null,null,null,null,null,null,null,null,null,null,null,null,null,null,null,null,"C.C."]
[]
[null,"Señor propietario y diseñador, con la presentación de este formato y solicitud ustedes:\n\n- Declaran que la información presentada en este documento y sus anexos es veráz  y corresponde a la realidad.\n- Declaran que los ítems contenidos en el presente Proyecto de Conexión, hacen parte de un diseño detallado (Artículo 10.1.1 Reglamento Técnico de Instalaciones Eléctricas, RETIE), el cual es un requisito para la certificación de la instalación y deberá ser presentado al organismo certificador competente.\n- Autorizan a CODENSA SA ESP, consultar con las distintas bases de datos, entidades del estado y entidades competentes la existencia y veracidad de la información por ustedes aportada, de acuerdo con lo previsto en las Leyes 1266 de 2008 y 1581 de 2012"]
[]
[]
[]
[]
[]
[]
[]
[null,"\n- CODENSA SA ESP, se reserva el derecho, en caso de que lo estime pertinente,requerir la presentación de los soportes de la información presentada en este documento y sus anexos.\n- El presente documento y/o formato, con sus anexos hacen partede la solicitud de revisión de proyecto que se presenta a CODENSA SA ESP, en su calidad de Operador de Red o prestador del Servicio Público Domiciliario de Distribución de energía eléctrica y en consecuencia su alteración, diligenciamiento incompleto y/o modificación del mismo tendrá el tratamiento de una petición incompleta y se le aplicará lo referido en el artículo 17 del mismo CPACA, sin perjuicio de las repercusiones legales que se puedan generar como consecuencia de la alteración del mismo del suministro de información que no corresponda a la realidad.\n"]
[]
[]
[]
[null,null,null,"¿Autoriza recibir las comunicaciones a través de un correo electrónico, "]
[null,null,null,"en los términos de los artículos 56 y 67 numeral 1 del CPACA?",null,null,null,null,null,null,null,null,null,null,null,null,null,null,null,null,null,null,null,null,null,null,null,null,null,null,null,null,null,null,null,null,null,null,null,null,null,null,null,null,null,null,"SÍ",null,null,null,null,null,"NO"]
[null,""]
[null,{"$f":"+IF(AW76=\"X\", \"al correo\",\"\")","v":""}]

{"sheet":"RESPUESTA","index":1,"n_rows":63,"n_cols":53,"rows_kept":63,"cut":false,"hidden":true,"merged":[[39,18,39,65],[56,1,56,66],[41,52,41,65],[41,2,41,17],[41,18,41,31],[41,36,41,51],[62,1,64,66],[61,1,61,66],[44,1,44,66],[46,1,46,66],[51,1,51,66],[47,1,47,66],[48,1,48,66],[49,1,49,66],[52,1,52,66],[53,1,53,66],[54,1,54,66],[57,1,57,66],[58,1,58,66],[59,1,59,66],[12,19,12,31],[14,19,14,31],[12,47,12,65],[20,2,20,17],[20,18,20,65],[22,2,22,17],[22,18,22,65],[24,2,24,17],[24,18,24,31],[24,36,24,51],[24,52,24,65],[26,2,26,16],[26,18,26,31],[30,36,30,50],[30,52,30,65],[30,2,31,15],[30,18,30,21],[26,36,26,51],[26,52,26,65],[28,2,28,16],[28,18,28,31],[28,36,28,51],[28,52,28,65],[34,1,34,66],[37,2,37,17],[37,18,37,65],[39,2,39,17],[1,8,4,59],[1,60,4,66],[6,1,6,32],[6,35,6,66],[10,2,10,15],[10,19,10,21],[10,23,10,26],[10,28,10,31],[8,47,8,65],[8,2,8,15],[8,19,8,31],[10,47,10,65]]}
[]
[null,null,null,null,null,null,null,null,"RESPUESTA A SOLICITUD DE REVISIÓN DE PROYECTO DE CONEXIÓN"]
[]
[]
[]
[]
[null,"ESPACIO EXCLUSIVO ENEL-CODENSA",null,null,null,null,null,null,null,null,null,null,null,null,null,null,null,null,null,null,null,null,null,null,null,null,null,null,null,null,null,null,null,null,null,"DATOS GENERALES DE LA SOLICITUD"]
[]
[null,null,"RESULTADO SOLICITUD",null,null,null,null,null,null,null,null,null,null,null,null,null,null,null,null,"CERRADO",null,null,null,null,null,null,null,null,null,null,null,null,null,null,null,null,"No. FACTIBILIDAD",null,null,null,null,null,null,null,null,null,null,{"$f":"+SOLICITUD!AV9","v":0}]
[]
[null,null,"FECHA DE RESPUESTA",null,null,null,null,null,null,null,null,null,null,null,null,null,null,null,null,null,null,null,null,null,null,null,null,null,null,null,null,null,null,null,null,null,"TIPO DE SOLICITUD",null,null,null,null,null,null,null,null,null,null,{"$f":"+SOLICITUD!AV11","v":0}]
[]
[null,null,"No. RADICADO",null,null,null,null,null,null,null,null,null,null,null,null,null,null,null,null,{"$f":"+SOLICITUD!T11","v":0},null,null,null,null,null,null,null,null,null,null,null,null,null,null,null,null,"TRÁMITE",null,null,null,null,null,null,null,null,null,null,{"$f":"+SOLICITUD!AV13","v":0}]
[]
[null,null,"OFICINA DE RADICACIÓN",null,null,null,null,null,null,null,null,null,null,null,null,null,null,null,null,{"$f":"+SOLICITUD!T13","v":0}]
[]
[]
[null,"INFORMACIÓN DEL PROYECTO"]
[]
[]
[null,null,"NOMBRE DEL PROYECTO",null,null,null,null,null,null,null,null,null,null,null,null,null,null,null,{"$f":"+SOLICITUD!S19","v":0}]
[]
[null,null,"DIRECCIÓN",null,null,null,null,null,null,null,null,null,null,null,null,null,null,null,{"$f":"+SOLICITUD!S21","v":0}]
[]
[null,null,"DEPARTAMENTO",null,null,null,null,null,null,null,null,null,null,null,null,null,null,null,{"$f":"+SOLICITUD!S23","v":0},null,null,null,null,null,null,null,null,null,null,null,null,null,null,null,null,null,{"$f":"+IF(S25=\"BOGOTÁ\",\"LOCALIDAD\",\"MUNICIPIO\")","v":"MUNICIPIO"},null,null,null,null,null,null,null,null,null,null,null,null,null,null,null,{"$f":"+SOLICITUD!BA23","v":0}]
[]
[null,null,"TIPO DE USO",null,null,null,null,null,null,null,null,null,null,null,null,null,null,null,{"$f":"+SOLICITUD!S25","v":0},null,null,null,null,null,null,null,null,null,null,null,null,null,null,null,null,null,"ESTRATO",null,null,null,null,null,null,null,null,null,null,null,null,null,null,null,{"$f":"+SOLICITUD!BA29","v":0}]
[]
[null,null,"NÚMERO DE CUENTAS",null,null,null,null,null,null,null,null,null,null,null,null,null,null,null,{"$f":"+SOLICITUD!S27","v":0},null,null,null,null,null,null,null,null,null,null,null,null,null,null,null,null,null,"CARGA INSTALADA",null,null,null,null,null,null,null,null,null,null,null,null,null,null,null,{"$f":"+SOLICITUD!BA27","v":0}]
[]
[null,null,"¿Aplica licencia de construcción de acuerdo al decreto 1469 de 2010?",null,null,null,null,null,null,null,null,null,null,null,null,null,null,null,{"$f":"+SOLICITUD!S29","v":0},null,null,null,null,null,null,null,null,null,null,null,null,null,null,null,null,null,"TIPO DE SERIE DEL PROYECTO",null,null,null,null,null,null,null,null,null,null,null,null,null,null,null,{"$f":"+SOLICITUD!BA29","v":0}]
[]
[]
[]
[null,"INFORMACIÓN DEL DISEÑADOR"]
[]
[]
[null,null,"NOMBRE DEL DISEÑADOR",null,null,null,null,null,null,null,null,null,null,null,null,null,null,null,{"$f":"+SOLICITUD!C49","v":0}]
[]
[null,null,"CORREO ELETRÓNICO",null,null,null,null,null,null,null,null,null,null,null,null,null,null,null,{"$f":"+SOLICITUD!AV49","v":0}]
[]
[null,null,"TELÉFONO",null,null,null,null,null,null,null,null,null,null,null,null,null,null,null,{"$f":"+SOLICITUD!AN45","v":0},null,null,null,null,null,null,null,null,null,null,null,null,null,null,null,null,null,"CELULAR",null,null,null,null,null,null,null,null,null,null,null,null,null,null,null,{"$f":"+SOLICITUD!W49","v":0}]
[]
[]
[null,"REVISIÓN DEL PROYECTO DE CONEXIÓN"]
[]
[null,"ASPECTOS DOCUMENTALES"]
[]
[]
[]
[]
[null,"ASPECTOS TÉCNICOS"]
[]
[]
[]
[]
[null,"PLANOS"]
[]
[]
[]
[]
[null,"OBSERVACIONES"]
[null,{"$f":"IF(T9=\"CERRADO\",VLOOKUP(BA25,MUNICIPIOS!C:F,4,0),\"\")","v":{"$error":"#N/A"}}]

{"sheet":"Hoja2","index":2,"n_rows":31,"n_cols":24,"rows_kept":31,"cut":false,"hidden":true,"merged":[]}
[null,1,"Enero",2018,null,"Servicio Definitivo",null,1,"SI","propietario.",null,"X","TRÁMITE",null,"CARGA NUEVA",null,"RESIDENCIAL",null,"S1-REDES MT"]
[null,2,"Febrero",2019,null,"Provisional de Obra",null,2,"NO","representante legal de",null,null,"PROYECTO NUEVO",null,"AUMENTO DE CARGA",null,"COMERCIAL",null,"S3-SUBESTACIÓN",null,null,"Constructor",null,"APROBADO"]
[null,3,"Marzo",2020,null,"Alumbrado Público",null,3,null,"autorizado por",null,null,"REVALIDACIÓN",null,"INCORPORACIÓN DE CUENTAS",null,"INDUSTRIAL",null,"S4-REDES BT",null,null,"Agua De Dios",null,"CERRADO"]
[null,4,"Abril",2021,null,"Transitorio",null,4,null,null,null,null,"MODIFICACIÓN ",null,"INDEPENDIZACIÓN DE CUENTAS",null,"OFICIAL",null,"S5-TRAFO  EN POSTE",null,null,"Anapoima",null,"REVALIDADO"]
[null,5,"Mayo",2022,null,null,null,5,null,null,null,null,null,null,"CANCELACIÓN DE CUENTAS",null,"PROVISIONAL OBRA",null,"S6-ALUMBRADO PUBLICO",null,null,"Cáqueza"]
[null,6,"Junio",2023,null,null,null,6,null,null,null,null,null,null,"MODERNIZACIÓN O TRASLADO DE SUBESTACIÓN",null,"OTRO",null,null,null,null,"Chía"]
[null,7,"Julio",2024,null,null,null,"N/A",null,null,null,null,null,null,"CAMBIO DE NIVEL DE TENSIÓN DE SUMINISTRO",null,null,null,null,null,null,"Choachí"]
[null,8,"Agosto",2025,null,null,null,null,null,null,null,null,null,null,"CAMBIO DE LUGAR DE MEDICIÓN",null,null,null,null,null,null,"Chocontá"]
[null,9,"Septiembre",2026,null,null,null,null,null,null,null,null,null,null,"GENERACIÓN PLENA",null,null,null,null,null,null,"Facatativá"]
[null,10,"Octubre",2027,null,null,null,null,null,null,null,null,null,null,"COGENERACIÓN",null,null,null,null,null,null,"Fusagasugá Calle 10"]
[null,11,"Noviembre",2028,null,null,null,null,null,null,null,null,null,null,"AUTO GENERACIÓN",null,null,null,null,null,null,"Fusagasugá Calle 9"]
[null,12,"Diciembre",2029,null,null,null,null,null,null,null,null,null,null,null,null,null,null,null,null,null,"Gachetá"]
[null,13,null,2030,null,null,null,null,null,null,null,null,null,null,null,null,null,null,null,null,null,"Girardot"]
[null,14,null,null,null,null,null,null,null,null,null,null,null,null,null,null,null,null,null,null,null,"Guaduas"]
[null,15,null,null,null,null,null,null,null,null,null,null,null,null,null,null,null,null,null,null,null,"La Mesa"]
[null,16,null,null,null,null,null,null,null,null,null,null,null,null,null,null,null,null,null,null,null,"La Palma"]
[null,17,null,null,null,null,null,null,null,null,null,null,null,null,null,null,null,null,null,null,null,"La Vega"]
[null,18,null,null,null,null,null,null,null,null,null,null,null,null,null,null,null,null,null,null,null,"Madrid"]
[null,19,null,null,null,null,null,null,null,null,null,null,null,null,null,null,null,null,null,null,null,"Mesitas"]
[null,20,null,null,null,null,null,null,null,null,null,null,null,null,null,null,null,null,null,null,null,"Pacho"]
[null,21,null,null,null,null,null,null,null,null,null,null,null,null,null,null,null,null,null,null,null,"Puerto Salgar"]
[null,22,null,null,null,null,null,null,null,null,null,null,null,null,null,null,null,null,null,null,null,"Tocaima"]
[null,23,null,null,null,null,null,null,null,null,null,null,null,null,null,null,null,null,null,null,null,"Ubaté"]
[null,24,null,null,null,null,null,null,null,null,null,null,null,null,null,null,null,null,null,null,null,"Villeta"]
[null,25,null,null,null,null,null,null,null,null,null,null,null,null,null,null,null,null,null,null,null,"Zipaquirá"]
[null,26]
[null,27]
[null,28]
[null,29]
[null,30]
[null,31]

{"sheet":"MUNICIPIOS","index":3,"n_rows":175,"n_cols":6,"rows_kept":175,"cut":false,"hidden":true,"merged":[]}
["MUNICIPIOS","MUNICIPIO","MUNICIPIO","ZONA","Correo"]
["BOGOTÁ","BOGOTÁ","ANTONIO NARIÑO","BOGOTÁ ORIENTE","ConexionesBogotaOriente@enel.com","Se recomienda agendar una cita para realizar una pre-revisión antes de radicar nuevamente su proyecto, escribiendo al correo ConexionesBogotaOriente@enel.com "]
["CUNDINAMARCA","BOGOTÁ","BARRIOS UNIDOS","BOGOTÁ ORIENTE","ConexionesBogotaOriente@enel.com","Se recomienda agendar una cita para realizar una pre-revisión antes de radicar nuevamente su proyecto, escribiendo al correo ConexionesBogotaOriente@enel.com "]
["BOYACÁ","BOGOTÁ","BOSA","BOGOTÁ SUR","ConexionesBogotaSur@enel.com","Se recomienda agendar una cita para realizar una pre-revisión antes de radicar nuevamente su proyecto, escribiendo al correo ConexionesBogotaSur@enel.com "]
["META","BOGOTÁ","CHAPINERO","BOGOTÁ NORTE","ConexionesBogotaNorte@enel.com","Se recomienda agendar una cita para realizar una pre-revisión antes de radicar nuevamente su proyecto, escribiendo al correo ConexionesBogotaNorte@enel.com "]
["TOLIMA","BOGOTÁ","CIUDAD BOLÍVAR","BOGOTÁ SUR","ConexionesBogotaSur@enel.com","Se recomienda agendar una cita para realizar una pre-revisión antes de radicar nuevamente su proyecto, escribiendo al correo ConexionesBogotaSur@enel.com "]
["CALDAS","BOGOTÁ","ENGATIVÁ","BOGOTÁ OCCIDENTE","ConexionesBogotaOccidente@enel.com","Se recomienda agendar una cita para realizar una pre-revisión antes de radicar nuevamente su proyecto, escribiendo al correo ConexionesBogotaOccidente@enel.com "]
[null,"BOGOTÁ","FONTIBÓN","BOGOTÁ OCCIDENTE","ConexionesBogotaOccidente@enel.com","Se recomienda agendar una cita para realizar una pre-revisión antes de radicar nuevamente su proyecto, escribiendo al correo ConexionesBogotaOccidente@enel.com "]
[null,"BOGOTÁ","KENNEDY","BOGOTÁ SUR","ConexionesBogotaSur@enel.com","Se recomienda agendar una cita para realizar una pre-revisión antes de radicar nuevamente su proyecto, escribiendo al correo ConexionesBogotaSur@enel.com "]
[null,"BOGOTÁ","LA CANDELARIA","BOGOTÁ ORIENTE","ConexionesBogotaOriente@enel.com","Se recomienda agendar una cita para realizar una pre-revisión antes de radicar nuevamente su proyecto, escribiendo al correo ConexionesBogotaOriente@enel.com "]
[null,"BOGOTÁ","LOS MÁRTIRES","BOGOTÁ ORIENTE","ConexionesBogotaOriente@enel.com","Se recomienda agendar una cita para realizar una pre-revisión antes de radicar nuevamente su proyecto, escribiendo al correo ConexionesBogotaOriente@enel.com "]
[null,"BOGOTÁ","PUENTE ARANDA","BOGOTÁ ORIENTE","ConexionesBogotaOriente@enel.com","Se recomienda agendar una cita para realizar una pre-revisión antes de radicar nuevamente su proyecto, escribiendo al correo ConexionesBogotaOriente@enel.com "]
[null,"BOGOTÁ","RAFAEL URIBE","BOGOTÁ ORIENTE","ConexionesBogotaOriente@enel.com","Se recomienda agendar una cita para realizar una pre-revisión antes de radicar nuevamente su proyecto, escribiendo al correo ConexionesBogotaOriente@enel.com "]
[null,"BOGOTÁ","SAN CRISTOBAL","BOGOTÁ ORIENTE","ConexionesBogotaOriente@enel.com","Se recomienda agendar una cita para realizar una pre-revisión antes de radicar nuevamente su proyecto, escribiendo al correo ConexionesBogotaOriente@enel.com "]
[null,"BOGOTÁ","SANTA FE","BOGOTÁ ORIENTE","ConexionesBogotaOriente@enel.com","Se recomienda agendar una cita para realizar una pre-revisión antes de radicar nuevamente su proyecto, escribiendo al correo ConexionesBogotaOriente@enel.com "]
[null,"BOGOTÁ","SOACHA","BOGOTÁ SUR","ConexionesBogotaSur@enel.com","Se recomienda agendar una cita para realizar una pre-revisión antes de radicar nuevamente su proyecto, escribiendo al correo ConexionesBogotaSur@enel.com "]
[null,"BOGOTÁ","SUBA","BOGOTÁ OCCIDENTE","ConexionesBogotaOccidente@enel.com","Se recomienda agendar una cita para realizar una pre-revisión antes de radicar nuevamente su proyecto, escribiendo al correo ConexionesBogotaOccidente@enel.com "]
[null,"BOGOTÁ","TEUSAQUILLO","BOGOTÁ ORIENTE","ConexionesBogotaOriente@enel.com","Se recomienda agendar una cita para realizar una pre-revisión antes de radicar nuevamente su proyecto, escribiendo al correo ConexionesBogotaOriente@enel.com "]
[null,"BOGOTÁ","TUNJUELITO","BOGOTÁ SUR","ConexionesBogotaSur@enel.com","Se recomienda agendar una cita para realizar una pre-revisión antes de radicar nuevamente su proyecto, escribiendo al correo ConexionesBogotaSur@enel.com "]
[null,"BOGOTÁ","USAQUÉN","BOGOTÁ NORTE","ConexionesBogotaNorte@enel.com","Se recomienda agendar una cita para realizar una pre-revisión antes de radicar nuevamente su proyecto, escribiendo al correo ConexionesBogotaNorte@enel.com "]
[null,"BOGOTÁ","USME","BOGOTÁ SUR","ConexionesBogotaSur@enel.com","Se recomienda agendar una cita para realizar una pre-revisión antes de radicar nuevamente su proyecto, escribiendo al correo ConexionesBogotaSur@enel.com "]
[null,"BOYACÁ","CHIQUINQUIRÁ","CUNDINAMARCA NORTE","ConexionesCundinamarcaNorte@enel.com","Se recomienda agendar una cita para realizar una pre-revisión antes de radicar nuevamente su proyecto, escribiendo al correo ConexionesCundinamarcaNorte@enel.com "]
[null,"BOYACÁ","COPER","CUNDINAMARCA NORTE","ConexionesCundinamarcaNorte@enel.com","Se recomienda agendar una cita para realizar una pre-revisión antes de radicar nuevamente su proyecto, escribiendo al correo ConexionesCundinamarcaNorte@enel.com "]
[null,"BOYACÁ","RÁQUIRA","CUNDINAMARCA NORTE","ConexionesCundinamarcaNorte@enel.com","Se recomienda agendar una cita para realizar una pre-revisión antes de radicar nuevamente su proyecto, escribiendo al correo ConexionesCundinamarcaNorte@enel.com "]
[null,"BOYACÁ","SAN MIGUEL DE SEMA","CUNDINAMARCA NORTE","ConexionesCundinamarcaNorte@enel.com","Se recomienda agendar una cita para realizar una pre-revisión antes de radicar nuevamente su proyecto, escribiendo al correo ConexionesCundinamarcaNorte@enel.com "]
[null,"BOYACÁ","BUENAVISTA","CUNDINAMARCA NORTE","ConexionesCundinamarcaNorte@enel.com","Se recomienda agendar una cita para realizar una pre-revisión antes de radicar nuevamente su proyecto, escribiendo al correo ConexionesCundinamarcaNorte@enel.com "]
[null,"BOYACÁ","CALDAS","CUNDINAMARCA NORTE","ConexionesCundinamarcaNorte@enel.com","Se recomienda agendar una cita para realizar una pre-revisión antes de radicar nuevamente su proyecto, escribiendo al correo ConexionesCundinamarcaNorte@enel.com "]
[null,"BOYACÁ","GUATEQUE","CUNDINAMARCA NORTE","ConexionesCundinamarcaNorte@enel.com","Se recomienda agendar una cita para realizar una pre-revisión antes de radicar nuevamente su proyecto, escribiendo al correo ConexionesCundinamarcaNorte@enel.com "]
[null,"BOYACÁ","LA VICTORIA","CUNDINAMARCA NORTE","ConexionesCundinamarcaNorte@enel.com","Se recomienda agendar una cita para realizar una pre-revisión antes de radicar nuevamente su proyecto, escribiendo al correo ConexionesCundinamarcaNorte@enel.com "]
[null,"BOYACÁ","MUZO","CUNDINAMARCA NORTE","ConexionesCundinamarcaNorte@enel.com","Se recomienda agendar una cita para realizar una pre-revisión antes de radicar nuevamente su proyecto, escribiendo al correo ConexionesCundinamarcaNorte@enel.com "]
[null,"BOYACÁ","PUERTO BOYACÁ","CUNDINAMARCA NORTE","ConexionesCundinamarcaNorte@enel.com","Se recomienda agendar una cita para realizar una pre-revisión antes de radicar nuevamente su proyecto, escribiendo al correo ConexionesCundinamarcaNorte@enel.com "]
[null,"BOYACÁ","QUIPAMA","CUNDINAMARCA NORTE","ConexionesCundinamarcaNorte@enel.com","Se recomienda agendar una cita para realizar una pre-revisión antes de radicar nuevamente su proyecto, escribiendo al correo ConexionesCundinamarcaNorte@enel.com "]
[null,"BOYACÁ","SAMACÁ","CUNDINAMARCA NORTE","ConexionesCundinamarcaNorte@enel.com","Se recomienda agendar una cita para realizar una pre-revisión antes de radicar nuevamente su proyecto, escribiendo al correo ConexionesCundinamarcaNorte@enel.com "]
[null,"BOYACÁ","SANTA MARÍA","CUNDINAMARCA NORTE","ConexionesCundinamarcaNorte@enel.com","Se recomienda agendar una cita para realizar una pre-revisión antes de radicar nuevamente su proyecto, escribiendo al correo ConexionesCundinamarcaNorte@enel.com "]
[null,"BOYACÁ","TINJACÁ","CUNDINAMARCA NORTE","ConexionesCundinamarcaNorte@enel.com","Se recomienda agendar una cita para realizar una pre-revisión antes de radicar nuevamente su proyecto, escribiendo al correo ConexionesCundinamarcaNorte@enel.com "]
[null,"BOYACÁ","TURMEQUÉ","CUNDINAMARCA NORTE","ConexionesCundinamarcaNorte@enel.com","Se recomienda agendar una cita para realizar una pre-revisión antes de radicar nuevamente su proyecto, escribiendo al correo ConexionesCundinamarcaNorte@enel.com "]
[null,"BOYACÁ","VENTAQUEMADA","CUNDINAMARCA NORTE","ConexionesCundinamarcaNorte@enel.com","Se recomienda agendar una cita para realizar una pre-revisión antes de radicar nuevamente su proyecto, escribiendo al correo ConexionesCundinamarcaNorte@enel.com "]
[null,"BOYACÁ","PAIPA","CUNDINAMARCA NORTE","ConexionesCundinamarcaNorte@enel.com","Se recomienda agendar una cita para realizar una pre-revisión antes de radicar nuevamente su proyecto, escribiendo al correo ConexionesCundinamarcaNorte@enel.com "]
[null,"CALDAS","LA DORADA","CUNDINAMARCA SUR","ConexionesCundinamarcaSur@enel.com","Se recomienda agendar una cita para realizar una pre-revisión antes de radicar nuevamente su proyecto, escribiendo al correo ConexionesCundinamarcaSur@enel.com "]
[null,"CALDAS","NORCASIA","CUNDINAMARCA SUR","ConexionesCundinamarcaSur@enel.com","Se recomienda agendar una cita para realizar una pre-revisión antes de radicar nuevamente su proyecto, escribiendo al correo ConexionesCundinamarcaSur@enel.com "]
[null,"CUNDINAMARCA","AGUA DE DIOS","CUNDINAMARCA SUR","ConexionesCundinamarcaSur@enel.com","Se recomienda agendar una cita para realizar una pre-revisión antes de radicar nuevamente su proyecto, escribiendo al correo ConexionesCundinamarcaSur@enel.com "]
[null,"CUNDINAMARCA","ALBAN","CUNDINAMARCA OCCIDENTE","ConexionesCundinamarcaOccidente@enel.com","Se recomienda agendar una cita para realizar una pre-revisión antes de radicar nuevamente su proyecto, escribiendo al correo ConexionesCundinamarcaOccidente@enel.com "]
[null,"CUNDINAMARCA","ALBÁN","CUNDINAMARCA OCCIDENTE","ConexionesCundinamarcaOccidente@enel.com","Se recomienda agendar una cita para realizar una pre-revisión antes de radicar nuevamente su proyecto, escribiendo al correo ConexionesCundinamarcaOccidente@enel.com "]
[null,"CUNDINAMARCA","ANAPOIMA","CUNDINAMARCA SUR","ConexionesCundinamarcaSur@enel.com","Se recomienda agendar una cita para realizar una pre-revisión antes de radicar nuevamente su proyecto, escribiendo al correo ConexionesCundinamarcaSur@enel.com "]
[null,"CUNDINAMARCA","ANOLAIMA","CUNDINAMARCA OCCIDENTE","ConexionesCundinamarcaOccidente@enel.com","Se recomienda agendar una cita para realizar una pre-revisión antes de radicar nuevamente su proyecto, escribiendo al correo ConexionesCundinamarcaOccidente@enel.com "]
[null,"CUNDINAMARCA","APULO","CUNDINAMARCA SUR","ConexionesCundinamarcaSur@enel.com","Se recomienda agendar una cita para realizar una pre-revisión antes de radicar nuevamente su proyecto, escribiendo al correo ConexionesCundinamarcaSur@enel.com "]
[null,"CUNDINAMARCA","ARBELÁEZ","CUNDINAMARCA SUR","ConexionesCundinamarcaSur@enel.com","Se recomienda agendar una cita para realizar una pre-revisión antes de radicar nuevamente su proyecto, escribiendo al correo ConexionesCundinamarcaSur@enel.com "]
[null,"CUNDINAMARCA","BELTRÁN","CUNDINAMARCA SUR","ConexionesCundinamarcaSur@enel.com","Se recomienda agendar una cita para realizar una pre-revisión antes de radicar nuevamente su proyecto, escribiendo al correo ConexionesCundinamarcaSur@enel.com "]
[null,"CUNDINAMARCA","BITUIMA","CUNDINAMARCA OCCIDENTE","ConexionesCundinamarcaOccidente@enel.com","Se recomienda agendar una cita para realizar una pre-revisión antes de radicar nuevamente su proyecto, escribiendo al correo ConexionesCundinamarcaOccidente@enel.com "]
[null,"CUNDINAMARCA","BOJACÁ","CUNDINAMARCA OCCIDENTE","ConexionesCundinamarcaOccidente@enel.com","Se recomienda agendar una cita para realizar una pre-revisión antes de radicar nuevamente su proyecto, escribiendo al correo ConexionesCundinamarcaOccidente@enel.com "]
[null,"CUNDINAMARCA","CABRERA","CUNDINAMARCA SUR","ConexionesCundinamarcaSur@enel.com","Se recomienda agendar una cita para realizar una pre-revisión antes de radicar nuevamente su proyecto, escribiendo al correo ConexionesCundinamarcaSur@enel.com "]
[null,"CUNDINAMARCA","CACHIPAY","CUNDINAMARCA OCCIDENTE","ConexionesCundinamarcaOccidente@enel.com","Se recomienda agendar una cita para realizar una pre-revisión antes de radicar nuevamente su proyecto, escribiendo al correo ConexionesCundinamarcaOccidente@enel.com "]
[null,"CUNDINAMARCA","CAJICÁ","CUNDINAMARCA ORIENTE","ConexionesCundinamarcaOriente@enel.com","Se recomienda agendar una cita para realizar una pre-revisión antes de radicar nuevamente su proyecto, escribiendo al correo ConexionesCundinamarcaOriente@enel.com "]
[null,"CUNDINAMARCA","CAPARRAPÍ","CUNDINAMARCA NORTE","ConexionesCundinamarcaNorte@enel.com","Se recomienda agendar una cita para realizar una pre-revisión antes de radicar nuevamente su proyecto, escribiendo al correo ConexionesCundinamarcaNorte@enel.com "]
[null,"CUNDINAMARCA","CAQUEZA","CUNDINAMARCA ORIENTE","ConexionesCundinamarcaOriente@enel.com","Se recomienda agendar una cita para realizar una pre-revisión antes de radicar nuevamente su proyecto, escribiendo al correo ConexionesCundinamarcaOriente@enel.com "]
[null,"CUNDINAMARCA","CÁQUEZA","CUNDINAMARCA ORIENTE","ConexionesCundinamarcaOriente@enel.com","Se recomienda agendar una cita para realizar una pre-revisión antes de radicar nuevamente su proyecto, escribiendo al correo ConexionesCundinamarcaOriente@enel.com "]
[null,"CUNDINAMARCA","CARMEN DE CARUPA","CUNDINAMARCA NORTE","ConexionesCundinamarcaNorte@enel.com","Se recomienda agendar una cita para realizar una pre-revisión antes de radicar nuevamente su proyecto, escribiendo al correo ConexionesCundinamarcaNorte@enel.com "]
[null,"CUNDINAMARCA","CHAGUANÍ","CUNDINAMARCA OCCIDENTE","ConexionesCundinamarcaOccidente@enel.com","Se recomienda agendar una cita para realizar una pre-revisión antes de radicar nuevamente su proyecto, escribiendo al correo ConexionesCundinamarcaOccidente@enel.com "]
[null,"CUNDINAMARCA","CHÍA","CUNDINAMARCA ORIENTE","ConexionesCundinamarcaOriente@enel.com","Se recomienda agendar una cita para realizar una pre-revisión antes de radicar nuevamente su proyecto, escribiendo al correo ConexionesCundinamarcaOriente@enel.com "]
[null,"CUNDINAMARCA","CHIPAQUE","CUNDINAMARCA ORIENTE","ConexionesCundinamarcaOriente@enel.com","Se recomienda agendar una cita para realizar una pre-revisión antes de radicar nuevamente su proyecto, escribiendo al correo ConexionesCundinamarcaOriente@enel.com "]
[null,"CUNDINAMARCA","CHOACHÍ","CUNDINAMARCA ORIENTE","ConexionesCundinamarcaOriente@enel.com","Se recomienda agendar una cita para realizar una pre-revisión antes de radicar nuevamente su proyecto, escribiendo al correo ConexionesCundinamarcaOriente@enel.com "]
[null,"CUNDINAMARCA","CHOCONTÁ","CUNDINAMARCA ORIENTE","ConexionesCundinamarcaOriente@enel.com","Se recomienda agendar una cita para realizar una pre-revisión antes de radicar nuevamente su proyecto, escribiendo al correo ConexionesCundinamarcaOriente@enel.com "]
[null,"CUNDINAMARCA","COGUA","CUNDINAMARCA NORTE","ConexionesCundinamarcaNorte@enel.com","Se recomienda agendar una cita para realizar una pre-revisión antes de radicar nuevamente su proyecto, escribiendo al correo ConexionesCundinamarcaNorte@enel.com "]
[null,"CUNDINAMARCA","COTA","CUNDINAMARCA OCCIDENTE","ConexionesCundinamarcaOccidente@enel.com","Se recomienda agendar una cita para realizar una pre-revisión antes de radicar nuevamente su proyecto, escribiendo al correo ConexionesCundinamarcaOccidente@enel.com "]
[null,"CUNDINAMARCA","CUCUNUBÁ","CUNDINAMARCA NORTE","ConexionesCundinamarcaNorte@enel.com","Se recomienda agendar una cita para realizar una pre-revisión antes de radicar nuevamente su proyecto, escribiendo al correo ConexionesCundinamarcaNorte@enel.com "]
[null,"CUNDINAMARCA","EL COLEGIO","CUNDINAMARCA SUR","ConexionesCundinamarcaSur@enel.com","Se recomienda agendar una cita para realizar una pre-revisión antes de radicar nuevamente su proyecto, escribiendo al correo ConexionesCundinamarcaSur@enel.com "]
[null,"CUNDINAMARCA","EL PEÑÓN","CUNDINAMARCA NORTE","ConexionesCundinamarcaNorte@enel.com","Se recomienda agendar una cita para realizar una pre-revisión antes de radicar nuevamente su proyecto, escribiendo al correo ConexionesCundinamarcaNorte@enel.com "]
[null,"CUNDINAMARCA","EL ROSAL","CUNDINAMARCA OCCIDENTE","ConexionesCundinamarcaOccidente@enel.com","Se recomienda agendar una cita para realizar una pre-revisión antes de radicar nuevamente su proyecto, escribiendo al correo ConexionesCundinamarcaOccidente@enel.com "]
[null,"CUNDINAMARCA","FACATATIVÁ","CUNDINAMARCA OCCIDENTE","ConexionesCundinamarcaOccidente@enel.com","Se recomienda agendar una cita para realizar una pre-revisión antes de radicar nuevamente su proyecto, escribiendo al correo ConexionesCundinamarcaOccidente@enel.com "]
[null,"CUNDINAMARCA","FÓMEQUE","CUNDINAMARCA ORIENTE","ConexionesCundinamarcaOriente@enel.com","Se recomienda agendar una cita para realizar una pre-revisión antes de radicar nuevamente su proyecto, escribiendo al correo ConexionesCundinamarcaOriente@enel.com "]
[null,"CUNDINAMARCA","FOSCA","CUNDINAMARCA ORIENTE","ConexionesCundinamarcaOriente@enel.com","Se recomienda agendar una cita para realizar una pre-revisión antes de radicar nuevamente su proyecto, escribiendo al correo ConexionesCundinamarcaOriente@enel.com "]
[null,"CUNDINAMARCA","FUNZA","CUNDINAMARCA OCCIDENTE","ConexionesCundinamarcaOccidente@enel.com","Se recomienda agendar una cita para realizar una pre-revisión antes de radicar nuevamente su proyecto, escribiendo al correo ConexionesCundinamarcaOccidente@enel.com "]
[null,"CUNDINAMARCA","FÚQUENE","CUNDINAMARCA NORTE","ConexionesCundinamarcaNorte@enel.com","Se recomienda agendar una cita para realizar una pre-revisión antes de radicar nuevamente su proyecto, escribiendo al correo ConexionesCundinamarcaNorte@enel.com "]
[null,"CUNDINAMARCA","FUSAGASUGÁ","CUNDINAMARCA SUR","ConexionesCundinamarcaSur@enel.com","Se recomienda agendar una cita para realizar una pre-revisión antes de radicar nuevamente su proyecto, escribiendo al correo ConexionesCundinamarcaSur@enel.com "]
[null,"CUNDINAMARCA","GACHALA","CUNDINAMARCA ORIENTE","ConexionesCundinamarcaOriente@enel.com","Se recomienda agendar una cita para realizar una pre-revisión antes de radicar nuevamente su proyecto, escribiendo al correo ConexionesCundinamarcaOriente@enel.com "]
[null,"CUNDINAMARCA","GACHANCIPÁ","CUNDINAMARCA ORIENTE","ConexionesCundinamarcaOriente@enel.com","Se recomienda agendar una cita para realizar una pre-revisión antes de radicar nuevamente su proyecto, escribiendo al correo ConexionesCundinamarcaOriente@enel.com "]
[null,"CUNDINAMARCA","GACHETÁ","CUNDINAMARCA ORIENTE","ConexionesCundinamarcaOriente@enel.com","Se recomienda agendar una cita para realizar una pre-revisión antes de radicar nuevamente su proyecto, escribiendo al correo ConexionesCundinamarcaOriente@enel.com "]
[null,"CUNDINAMARCA","GAMA","CUNDINAMARCA ORIENTE","ConexionesCundinamarcaOriente@enel.com","Se recomienda agendar una cita para realizar una pre-revisión antes de radicar nuevamente su proyecto, escribiendo al correo ConexionesCundinamarcaOriente@enel.com "]
[null,"CUNDINAMARCA","GIRARDOT","CUNDINAMARCA SUR","ConexionesCundinamarcaSur@enel.com","Se recomienda agendar una cita para realizar una pre-revisión antes de radicar nuevamente su proyecto, escribiendo al correo ConexionesCundinamarcaSur@enel.com "]
[null,"CUNDINAMARCA","GRANADA","CUNDINAMARCA SUR","ConexionesCundinamarcaSur@enel.com","Se recomienda agendar una cita para realizar una pre-revisión antes de radicar nuevamente su proyecto, escribiendo al correo ConexionesCundinamarcaSur@enel.com "]
[null,"CUNDINAMARCA","GUACHETÁ","CUNDINAMARCA NORTE","ConexionesCundinamarcaNorte@enel.com","Se recomienda agendar una cita para realizar una pre-revisión antes de radicar nuevamente su proyecto, escribiendo al correo ConexionesCundinamarcaNorte@enel.com "]
[null,"CUNDINAMARCA","GUADUAS","CUNDINAMARCA NORTE","ConexionesCundinamarcaNorte@enel.com","Se recomienda agendar una cita para realizar una pre-revisión antes de radicar nuevamente su proyecto, escribiendo al correo ConexionesCundinamarcaNorte@enel.com "]
[null,"CUNDINAMARCA","GUASCA","CUNDINAMARCA ORIENTE","ConexionesCundinamarcaOriente@enel.com","Se recomienda agendar una cita para realizar una pre-revisión antes de radicar nuevamente su proyecto, escribiendo al correo ConexionesCundinamarcaOriente@enel.com "]
[null,"CUNDINAMARCA","GUATAQUÍ","CUNDINAMARCA SUR","ConexionesCundinamarcaSur@enel.com","Se recomienda agendar una cita para realizar una pre-revisión antes de radicar nuevamente su proyecto, escribiendo al correo ConexionesCundinamarcaSur@enel.com "]
[null,"CUNDINAMARCA","GUATAVITA","CUNDINAMARCA ORIENTE","ConexionesCundinamarcaOriente@enel.com","Se recomienda agendar una cita para realizar una pre-revisión antes de radicar nuevamente su proyecto, escribiendo al correo ConexionesCundinamarcaOriente@enel.com "]
[null,"CUNDINAMARCA","GUAYABAL DE SIQUIMA","CUNDINAMARCA OCCIDENTE","ConexionesCundinamarcaOccidente@enel.com","Se recomienda agendar una cita para realizar una pre-revisión antes de radicar nuevamente su proyecto, escribiendo al correo ConexionesCundinamarcaOccidente@enel.com "]
[null,"CUNDINAMARCA","GUAYABETAL","CUNDINAMARCA ORIENTE","ConexionesCundinamarcaOriente@enel.com","Se recomienda agendar una cita para realizar una pre-revisión antes de radicar nuevamente su proyecto, escribiendo al correo ConexionesCundinamarcaOriente@enel.com "]
[null,"CUNDINAMARCA","GUTIÉRREZ","CUNDINAMARCA ORIENTE","ConexionesCundinamarcaOriente@enel.com","Se recomienda agendar una cita para realizar una pre-revisión antes de radicar nuevamente su proyecto, escribiendo al correo ConexionesCundinamarcaOriente@enel.com "]
[null,"CUNDINAMARCA","INSPECCIÓN SAN JOAQUÍN","CUNDINAMARCA OCCIDENTE","ConexionesCundinamarcaOccidente@enel.com","Se recomienda agendar una cita para realizar una pre-revisión antes de radicar nuevamente su proyecto, escribiendo al correo ConexionesCundinamarcaOccidente@enel.com "]
[null,"CUNDINAMARCA","JERUSALÉN","CUNDINAMARCA SUR","ConexionesCundinamarcaSur@enel.com","Se recomienda agendar una cita para realizar una pre-revisión antes de radicar nuevamente su proyecto, escribiendo al correo ConexionesCundinamarcaSur@enel.com "]
[null,"CUNDINAMARCA","JUNÍN","CUNDINAMARCA ORIENTE","ConexionesCundinamarcaOriente@enel.com","Se recomienda agendar una cita para realizar una pre-revisión antes de radicar nuevamente su proyecto, escribiendo al correo ConexionesCundinamarcaOriente@enel.com "]
[null,"CUNDINAMARCA","LA CALERA","CUNDINAMARCA ORIENTE","ConexionesCundinamarcaOriente@enel.com","Se recomienda agendar una cita para realizar una pre-revisión antes de radicar nuevamente su proyecto, escribiendo al correo ConexionesCundinamarcaOriente@enel.com "]
[null,"CUNDINAMARCA","LA MESA","CUNDINAMARCA SUR","ConexionesCundinamarcaSur@enel.com","Se recomienda agendar una cita para realizar una pre-revisión antes de radicar nuevamente su proyecto, escribiendo al correo ConexionesCundinamarcaSur@enel.com "]
[null,"CUNDINAMARCA","LA PALMA","CUNDINAMARCA NORTE","ConexionesCundinamarcaNorte@enel.com","Se recomienda agendar una cita para realizar una pre-revisión antes de radicar nuevamente su proyecto, escribiendo al correo ConexionesCundinamarcaNorte@enel.com "]
[null,"CUNDINAMARCA","LA PEÑA","CUNDINAMARCA NORTE","ConexionesCundinamarcaNorte@enel.com","Se recomienda agendar una cita para realizar una pre-revisión antes de radicar nuevamente su proyecto, escribiendo al correo ConexionesCundinamarcaNorte@enel.com "]
[null,"CUNDINAMARCA","LA VEGA","CUNDINAMARCA NORTE","ConexionesCundinamarcaNorte@enel.com","Se recomienda agendar una cita para realizar una pre-revisión antes de radicar nuevamente su proyecto, escribiendo al correo ConexionesCundinamarcaNorte@enel.com "]
[null,"CUNDINAMARCA","LENGUAZAQUE","CUNDINAMARCA NORTE","ConexionesCundinamarcaNorte@enel.com","Se recomienda agendar una cita para realizar una pre-revisión antes de radicar nuevamente su proyecto, escribiendo al correo ConexionesCundinamarcaNorte@enel.com "]
[null,"CUNDINAMARCA","MACHETA","CUNDINAMARCA ORIENTE","ConexionesCundinamarcaOriente@enel.com","Se recomienda agendar una cita para realizar una pre-revisión antes de radicar nuevamente su proyecto, escribiendo al correo ConexionesCundinamarcaOriente@enel.com "]
[null,"CUNDINAMARCA","MADRID","CUNDINAMARCA OCCIDENTE","ConexionesCundinamarcaOccidente@enel.com","Se recomienda agendar una cita para realizar una pre-revisión antes de radicar nuevamente su proyecto, escribiendo al correo ConexionesCundinamarcaOccidente@enel.com "]
[null,"CUNDINAMARCA","MANTA","CUNDINAMARCA ORIENTE","ConexionesCundinamarcaOriente@enel.com","Se recomienda agendar una cita para realizar una pre-revisión antes de radicar nuevamente su proyecto, escribiendo al correo ConexionesCundinamarcaOriente@enel.com "]
[null,"CUNDINAMARCA","MEDINA","CUNDINAMARCA ORIENTE","ConexionesCundinamarcaOriente@enel.com","Se recomienda agendar una cita para realizar una pre-revisión antes de radicar nuevamente su proyecto, escribiendo al correo ConexionesCundinamarcaOriente@enel.com "]
[null,"CUNDINAMARCA","MOSQUERA","CUNDINAMARCA OCCIDENTE","ConexionesCundinamarcaOccidente@enel.com","Se recomienda agendar una cita para realizar una pre-revisión antes de radicar nuevamente su proyecto, escribiendo al correo ConexionesCundinamarcaOccidente@enel.com "]
[null,"CUNDINAMARCA","NARIÑO","CUNDINAMARCA SUR","ConexionesCundinamarcaSur@enel.com","Se recomienda agendar una cita para realizar una pre-revisión antes de radicar nuevamente su proyecto, escribiendo al correo ConexionesCundinamarcaSur@enel.com "]
[null,"CUNDINAMARCA","NEMOCÓN","CUNDINAMARCA NORTE","ConexionesCundinamarcaNorte@enel.com","Se recomienda agendar una cita para realizar una pre-revisión antes de radicar nuevamente su proyecto, escribiendo al correo ConexionesCundinamarcaNorte@enel.com "]
[null,"CUNDINAMARCA","NILO","CUNDINAMARCA SUR","ConexionesCundinamarcaSur@enel.com","Se recomienda agendar una cita para realizar una pre-revisión antes de radicar nuevamente su proyecto, escribiendo al correo ConexionesCundinamarcaSur@enel.com "]
[null,"CUNDINAMARCA","NIMAIMA","CUNDINAMARCA NORTE","ConexionesCundinamarcaNorte@enel.com","Se recomienda agendar una cita para realizar una pre-revisión antes de radicar nuevamente su proyecto, escribiendo al correo ConexionesCundinamarcaNorte@enel.com "]
[null,"CUNDINAMARCA","NOCAIMA","CUNDINAMARCA NORTE","ConexionesCundinamarcaNorte@enel.com","Se recomienda agendar una cita para realizar una pre-revisión antes de radicar nuevamente su proyecto, escribiendo al correo ConexionesCundinamarcaNorte@enel.com "]
[null,"CUNDINAMARCA","PACHO","CUNDINAMARCA NORTE","ConexionesCundinamarcaNorte@enel.com","Se recomienda agendar una cita para realizar una pre-revisión antes de radicar nuevamente su proyecto, escribiendo al correo ConexionesCundinamarcaNorte@enel.com "]
[null,"CUNDINAMARCA","PAIME","CUNDINAMARCA NORTE","ConexionesCundinamarcaNorte@enel.com","Se recomienda agendar una cita para realizar una pre-revisión antes de radicar nuevamente su proyecto, escribiendo al correo ConexionesCundinamarcaNorte@enel.com "]
[null,"CUNDINAMARCA","PANDI","CUNDINAMARCA SUR","ConexionesCundinamarcaSur@enel.com","Se recomienda agendar una cita para realizar una pre-revisión antes de radicar nuevamente su proyecto, escribiendo al correo ConexionesCundinamarcaSur@enel.com "]
[null,"CUNDINAMARCA","PARATEBUENO","CUNDINAMARCA ORIENTE","ConexionesCundinamarcaOriente@enel.com","Se recomienda agendar una cita para realizar una pre-revisión antes de radicar nuevamente su proyecto, escribiendo al correo ConexionesCundinamarcaOriente@enel.com "]
[null,"CUNDINAMARCA","PASCA","CUNDINAMARCA SUR","ConexionesCundinamarcaSur@enel.com","Se recomienda agendar una cita para realizar una pre-revisión antes de radicar nuevamente su proyecto, escribiendo al correo ConexionesCundinamarcaSur@enel.com "]
[null,"CUNDINAMARCA","PUERTO SALGAR","CUNDINAMARCA NORTE","ConexionesCundinamarcaNorte@enel.com","Se recomienda agendar una cita para realizar una pre-revisión antes de radicar nuevamente su proyecto, escribiendo al correo ConexionesCundinamarcaNorte@enel.com "]
[null,"CUNDINAMARCA","PULÍ","CUNDINAMARCA SUR","ConexionesCundinamarcaSur@enel.com","Se recomienda agendar una cita para realizar una pre-revisión antes de radicar nuevamente su proyecto, escribiendo al correo ConexionesCundinamarcaSur@enel.com "]
[null,"CUNDINAMARCA","QUEBRADANEGRA","CUNDINAMARCA NORTE","ConexionesCundinamarcaNorte@enel.com","Se recomienda agendar una cita para realizar una pre-revisión antes de radicar nuevamente su proyecto, escribiendo al correo ConexionesCundinamarcaNorte@enel.com "]
[null,"CUNDINAMARCA","QUETAME","CUNDINAMARCA ORIENTE","ConexionesCundinamarcaOriente@enel.com","Se recomienda agendar una cita para realizar una pre-revisión antes de radicar nuevamente su proyecto, escribiendo al correo ConexionesCundinamarcaOriente@enel.com "]
[null,"CUNDINAMARCA","QUÍPAMA","CUNDINAMARCA NORTE","ConexionesCundinamarcaNorte@enel.com","Se recomienda agendar una cita para realizar una pre-revisión antes de radicar nuevamente su proyecto, escribiendo al correo ConexionesCundinamarcaNorte@enel.com "]
[null,"CUNDINAMARCA","QUIPILE","CUNDINAMARCA OCCIDENTE","ConexionesCundinamarcaOccidente@enel.com","Se recomienda agendar una cita para realizar una pre-revisión antes de radicar nuevamente su proyecto, escribiendo al correo ConexionesCundinamarcaOccidente@enel.com "]
[null,"CUNDINAMARCA","RICAURTE","CUNDINAMARCA SUR","ConexionesCundinamarcaSur@enel.com","Se recomienda agendar una cita para realizar una pre-revisión antes de radicar nuevamente su proyecto, escribiendo al correo ConexionesCundinamarcaSur@enel.com "]
[null,"CUNDINAMARCA","SAN ANTONIO DEL TEQUENDAMA","CUNDINAMARCA SUR","ConexionesCundinamarcaSur@enel.com","Se recomienda agendar una cita para realizar una pre-revisión antes de radicar nuevamente su proyecto, escribiendo al correo ConexionesCundinamarcaSur@enel.com "]
[null,"CUNDINAMARCA","SAN BERNARDO","CUNDINAMARCA SUR","ConexionesCundinamarcaSur@enel.com","Se recomienda agendar una cita para realizar una pre-revisión antes de radicar nuevamente su proyecto, escribiendo al correo ConexionesCundinamarcaSur@enel.com "]
[null,"CUNDINAMARCA","SAN CAYETANO","CUNDINAMARCA NORTE","ConexionesCundinamarcaNorte@enel.com","Se recomienda agendar una cita para realizar una pre-revisión antes de radicar nuevamente su proyecto, escribiendo al correo ConexionesCundinamarcaNorte@enel.com "]
[null,"CUNDINAMARCA","SAN FRANCISCO","CUNDINAMARCA NORTE","ConexionesCundinamarcaNorte@enel.com","Se recomienda agendar una cita para realizar una pre-revisión antes de radicar nuevamente su proyecto, escribiendo al correo ConexionesCundinamarcaNorte@enel.com "]
[null,"CUNDINAMARCA","SAN JUAN DE RÍO SECO","CUNDINAMARCA OCCIDENTE","ConexionesCundinamarcaOccidente@enel.com","Se recomienda agendar una cita para realizar una pre-revisión antes de radicar nuevamente su proyecto, escribiendo al correo ConexionesCundinamarcaOccidente@enel.com "]
[null,"CUNDINAMARCA","SASAIMA","CUNDINAMARCA OCCIDENTE","ConexionesCundinamarcaOccidente@enel.com","Se recomienda agendar una cita para realizar una pre-revisión antes de radicar nuevamente su proyecto, escribiendo al correo ConexionesCundinamarcaOccidente@enel.com "]
[null,"CUNDINAMARCA","SESQUILÉ","CUNDINAMARCA ORIENTE","ConexionesCundinamarcaOriente@enel.com","Se recomienda agendar una cita para realizar una pre-revisión antes de radicar nuevamente su proyecto, escribiendo al correo ConexionesCundinamarcaOriente@enel.com "]
[null,"CUNDINAMARCA","SIBATÉ","CUNDINAMARCA SUR","ConexionesCundinamarcaSur@enel.com","Se recomienda agendar una cita para realizar una pre-revisión antes de radicar nuevamente su proyecto, escribiendo al correo ConexionesCundinamarcaSur@enel.com "]
[null,"CUNDINAMARCA","SILVANIA","CUNDINAMARCA SUR","ConexionesCundinamarcaSur@enel.com","Se recomienda agendar una cita para realizar una pre-revisión antes de radicar nuevamente su proyecto, escribiendo al correo ConexionesCundinamarcaSur@enel.com "]
[null,"CUNDINAMARCA","SIMIJACA","CUNDINAMARCA NORTE","ConexionesCundinamarcaNorte@enel.com","Se recomienda agendar una cita para realizar una pre-revisión antes de radicar nuevamente su proyecto, escribiendo al correo ConexionesCundinamarcaNorte@enel.com "]
[null,"CUNDINAMARCA","SOPÓ","CUNDINAMARCA ORIENTE","ConexionesCundinamarcaOriente@enel.com","Se recomienda agendar una cita para realizar una pre-revisión antes de radicar nuevamente su proyecto, escribiendo al correo ConexionesCundinamarcaOriente@enel.com "]
[null,"CUNDINAMARCA","SUBACHOQUE","CUNDINAMARCA NORTE","ConexionesCundinamarcaNorte@enel.com","Se recomienda agendar una cita para realizar una pre-revisión antes de radicar nuevamente su proyecto, escribiendo al correo ConexionesCundinamarcaNorte@enel.com "]
[null,"CUNDINAMARCA","SUESCA","CUNDINAMARCA NORTE","ConexionesCundinamarcaNorte@enel.com","Se recomienda agendar una cita para realizar una pre-revisión antes de radicar nuevamente su proyecto, escribiendo al correo ConexionesCundinamarcaNorte@enel.com "]
[null,"CUNDINAMARCA","SUPATÁ","CUNDINAMARCA NORTE","ConexionesCundinamarcaNorte@enel.com","Se recomienda agendar una cita para realizar una pre-revisión antes de radicar nuevamente su proyecto, escribiendo al correo ConexionesCundinamarcaNorte@enel.com "]
[null,"CUNDINAMARCA","SUSA","CUNDINAMARCA NORTE","ConexionesCundinamarcaNorte@enel.com","Se recomienda agendar una cita para realizar una pre-revisión antes de radicar nuevamente su proyecto, escribiendo al correo ConexionesCundinamarcaNorte@enel.com "]
[null,"CUNDINAMARCA","SUTATAUSA","CUNDINAMARCA NORTE","ConexionesCundinamarcaNorte@enel.com","Se recomienda agendar una cita para realizar una pre-revisión antes de radicar nuevamente su proyecto, escribiendo al correo ConexionesCundinamarcaNorte@enel.com "]
[null,"CUNDINAMARCA","TABIO","CUNDINAMARCA NORTE","ConexionesCundinamarcaNorte@enel.com","Se recomienda agendar una cita para realizar una pre-revisión antes de radicar nuevamente su proyecto, escribiendo al correo ConexionesCundinamarcaNorte@enel.com "]
[null,"CUNDINAMARCA","TAUSA","CUNDINAMARCA NORTE","ConexionesCundinamarcaNorte@enel.com","Se recomienda agendar una cita para realizar una pre-revisión antes de radicar nuevamente su proyecto, escribiendo al correo ConexionesCundinamarcaNorte@enel.com "]
[null,"CUNDINAMARCA","TENA","CUNDINAMARCA SUR","ConexionesCundinamarcaSur@enel.com","Se recomienda agendar una cita para realizar una pre-revisión antes de radicar nuevamente su proyecto, escribiendo al correo ConexionesCundinamarcaSur@enel.com "]
[null,"CUNDINAMARCA","TENJO","CUNDINAMARCA NORTE","ConexionesCundinamarcaNorte@enel.com","Se recomienda agendar una cita para realizar una pre-revisión antes de radicar nuevamente su proyecto, escribiendo al correo ConexionesCundinamarcaNorte@enel.com "]
[null,"CUNDINAMARCA","TIBACUY","CUNDINAMARCA SUR","ConexionesCundinamarcaSur@enel.com","Se recomienda agendar una cita para realizar una pre-revisión antes de radicar nuevamente su proyecto, escribiendo al correo ConexionesCundinamarcaSur@enel.com "]
[null,"CUNDINAMARCA","TIBIRITA","CUNDINAMARCA ORIENTE","ConexionesCundinamarcaOriente@enel.com","Se recomienda agendar una cita para realizar una pre-revisión antes de radicar nuevamente su proyecto, escribiendo al correo ConexionesCundinamarcaOriente@enel.com "]
[null,"CUNDINAMARCA","TOCAIMA","CUNDINAMARCA SUR","ConexionesCundinamarcaSur@enel.com","Se recomienda agendar una cita para realizar una pre-revisión antes de radicar nuevamente su proyecto, escribiendo al correo ConexionesCundinamarcaSur@enel.com "]
[null,"CUNDINAMARCA","TOCANCIPÁ","CUNDINAMARCA ORIENTE","ConexionesCundinamarcaOriente@enel.com","Se recomienda agendar una cita para realizar una pre-revisión antes de radicar nuevamente su proyecto, escribiendo al correo ConexionesCundinamarcaOriente@enel.com "]
[null,"CUNDINAMARCA","TOPAIPÍ","CUNDINAMARCA NORTE","ConexionesCundinamarcaNorte@enel.com","Se recomienda agendar una cita para realizar una pre-revisión antes de radicar nuevamente su proyecto, escribiendo al correo ConexionesCundinamarcaNorte@enel.com "]
[null,"CUNDINAMARCA","UBALÁ","CUNDINAMARCA ORIENTE","ConexionesCundinamarcaOriente@enel.com","Se recomienda agendar una cita para realizar una pre-revisión antes de radicar nuevamente su proyecto, escribiendo al correo ConexionesCundinamarcaOriente@enel.com "]
[null,"CUNDINAMARCA","UBAQUE","CUNDINAMARCA ORIENTE","ConexionesCundinamarcaOriente@enel.com","Se recomienda agendar una cita para realizar una pre-revisión antes de radicar nuevamente su proyecto, escribiendo al correo ConexionesCundinamarcaOriente@enel.com "]
[null,"CUNDINAMARCA","UBATÉ","CUNDINAMARCA NORTE","ConexionesCundinamarcaNorte@enel.com","Se recomienda agendar una cita para realizar una pre-revisión antes de radicar nuevamente su proyecto, escribiendo al correo ConexionesCundinamarcaNorte@enel.com "]
[null,"CUNDINAMARCA","UNE","CUNDINAMARCA ORIENTE","ConexionesCundinamarcaOriente@enel.com","Se recomienda agendar una cita para realizar una pre-revisión antes de radicar nuevamente su proyecto, escribiendo al correo ConexionesCundinamarcaOriente@enel.com "]
[null,"CUNDINAMARCA","ÚTICA","CUNDINAMARCA NORTE","ConexionesCundinamarcaNorte@enel.com","Se recomienda agendar una cita para realizar una pre-revisión antes de radicar nuevamente su proyecto, escribiendo al correo ConexionesCundinamarcaNorte@enel.com "]
[null,"CUNDINAMARCA","VENECIA","CUNDINAMARCA SUR","ConexionesCundinamarcaSur@enel.com","Se recomienda agendar una cita para realizar una pre-revisión antes de radicar nuevamente su proyecto, escribiendo al correo ConexionesCundinamarcaSur@enel.com "]
[null,"CUNDINAMARCA","VERGARA","CUNDINAMARCA NORTE","ConexionesCundinamarcaNorte@enel.com","Se recomienda agendar una cita para realizar una pre-revisión antes de radicar nuevamente su proyecto, escribiendo al correo ConexionesCundinamarcaNorte@enel.com "]
[null,"CUNDINAMARCA","VIANÍ","CUNDINAMARCA OCCIDENTE","ConexionesCundinamarcaOccidente@enel.com","Se recomienda agendar una cita para realizar una pre-revisión antes de radicar nuevamente su proyecto, escribiendo al correo ConexionesCundinamarcaOccidente@enel.com "]
[null,"CUNDINAMARCA","VILLA DE SAN DIEGO DE UBATE","CUNDINAMARCA NORTE","ConexionesCundinamarcaNorte@enel.com","Se recomienda agendar una cita para realizar una pre-revisión antes de radicar nuevamente su proyecto, escribiendo al correo ConexionesCundinamarcaNorte@enel.com "]
[null,"CUNDINAMARCA","VILLAGÓMEZ","CUNDINAMARCA NORTE","ConexionesCundinamarcaNorte@enel.com","Se recomienda agendar una cita para realizar una pre-revisión antes de radicar nuevamente su proyecto, escribiendo al correo ConexionesCundinamarcaNorte@enel.com "]
[null,"CUNDINAMARCA","VILLAPINZÓN","CUNDINAMARCA NORTE","ConexionesCundinamarcaNorte@enel.com","Se recomienda agendar una cita para realizar una pre-revisión antes de radicar nuevamente su proyecto, escribiendo al correo ConexionesCundinamarcaNorte@enel.com "]
[null,"CUNDINAMARCA","VILLETA","CUNDINAMARCA NORTE","ConexionesCundinamarcaNorte@enel.com","Se recomienda agendar una cita para realizar una pre-revisión antes de radicar nuevamente su proyecto, escribiendo al correo ConexionesCundinamarcaNorte@enel.com "]
[null,"CUNDINAMARCA","VIOTÁ","CUNDINAMARCA SUR","ConexionesCundinamarcaSur@enel.com","Se recomienda agendar una cita para realizar una pre-revisión antes de radicar nuevamente su proyecto, escribiendo al correo ConexionesCundinamarcaSur@enel.com "]
[null,"CUNDINAMARCA","YACOPÍ","CUNDINAMARCA NORTE","ConexionesCundinamarcaNorte@enel.com","Se recomienda agendar una cita para realizar una pre-revisión antes de radicar nuevamente su proyecto, escribiendo al correo ConexionesCundinamarcaNorte@enel.com "]
[null,"CUNDINAMARCA","ZIPACÓN","CUNDINAMARCA OCCIDENTE","ConexionesCundinamarcaOccidente@enel.com","Se recomienda agendar una cita para realizar una pre-revisión antes de radicar nuevamente su proyecto, escribiendo al correo ConexionesCundinamarcaOccidente@enel.com "]
[null,"CUNDINAMARCA","ZIPAQUIRÁ","CUNDINAMARCA NORTE","ConexionesCundinamarcaNorte@enel.com","Se recomienda agendar una cita para realizar una pre-revisión antes de radicar nuevamente su proyecto, escribiendo al correo ConexionesCundinamarcaNorte@enel.com "]
[null,"META","CABUYARO","CUNDINAMARCA ORIENTE","ConexionesCundinamarcaOriente@enel.com","Se recomienda agendar una cita para realizar una pre-revisión antes de radicar nuevamente su proyecto, escribiendo al correo ConexionesCundinamarcaOriente@enel.com "]
[null,"META","EL CALVARIO","CUNDINAMARCA ORIENTE","ConexionesCundinamarcaOriente@enel.com","Se recomienda agendar una cita para realizar una pre-revisión antes de radicar nuevamente su proyecto, escribiendo al correo ConexionesCundinamarcaOriente@enel.com "]
[null,"META","SAN JUANITO","CUNDINAMARCA ORIENTE","ConexionesCundinamarcaOriente@enel.com","Se recomienda agendar una cita para realizar una pre-revisión antes de radicar nuevamente su proyecto, escribiendo al correo ConexionesCundinamarcaOriente@enel.com "]
[null,"META","ACACIAS","CUNDINAMARCA ORIENTE","ConexionesCundinamarcaOriente@enel.com","Se recomienda agendar una cita para realizar una pre-revisión antes de radicar nuevamente su proyecto, escribiendo al correo ConexionesCundinamarcaOriente@enel.com "]
[null,"META","BARRANCA DE UPIA","CUNDINAMARCA ORIENTE","ConexionesCundinamarcaOriente@enel.com","Se recomienda agendar una cita para realizar una pre-revisión antes de radicar nuevamente su proyecto, escribiendo al correo ConexionesCundinamarcaOriente@enel.com "]
[null,"META","VILLAVICENCIO","CUNDINAMARCA ORIENTE","ConexionesCundinamarcaOriente@enel.com","Se recomienda agendar una cita para realizar una pre-revisión antes de radicar nuevamente su proyecto, escribiendo al correo ConexionesCundinamarcaOriente@enel.com "]
[null,"TOLIMA","COELLO","CUNDINAMARCA SUR","ConexionesCundinamarcaSur@enel.com","Se recomienda agendar una cita para realizar una pre-revisión antes de radicar nuevamente su proyecto, escribiendo al correo ConexionesCundinamarcaSur@enel.com "]
[null,"TOLIMA","FLANDES","CUNDINAMARCA SUR","ConexionesCundinamarcaSur@enel.com","Se recomienda agendar una cita para realizar una pre-revisión antes de radicar nuevamente su proyecto, escribiendo al correo ConexionesCundinamarcaSur@enel.com "]
[null,"TOLIMA","ICONONZO","CUNDINAMARCA SUR","ConexionesCundinamarcaSur@enel.com","Se recomienda agendar una cita para realizar una pre-revisión antes de radicar nuevamente su proyecto, escribiendo al correo ConexionesCundinamarcaSur@enel.com "]
[null,"TOLIMA","ANABALEMA","CUNDINAMARCA SUR","ConexionesCundinamarcaSur@enel.com","Se recomienda agendar una cita para realizar una pre-revisión antes de radicar nuevamente su proyecto, escribiendo al correo ConexionesCundinamarcaSur@enel.com "]
[null,"TOLIMA","ARMERO","CUNDINAMARCA SUR","ConexionesCundinamarcaSur@enel.com","Se recomienda agendar una cita para realizar una pre-revisión antes de radicar nuevamente su proyecto, escribiendo al correo ConexionesCundinamarcaSur@enel.com "]
[null,"TOLIMA","HONDA","CUNDINAMARCA SUR","ConexionesCundinamarcaSur@enel.com","Se recomienda agendar una cita para realizar una pre-revisión antes de radicar nuevamente su proyecto, escribiendo al correo ConexionesCundinamarcaSur@enel.com "]
[null,"TOLIMA","MELGAR","CUNDINAMARCA SUR","ConexionesCundinamarcaSur@enel.com","Se recomienda agendar una cita para realizar una pre-revisión antes de radicar nuevamente su proyecto, escribiendo al correo ConexionesCundinamarcaSur@enel.com "]
[null,"TOLIMA","PIEDRAS","CUNDINAMARCA SUR","ConexionesCundinamarcaSur@enel.com","Se recomienda agendar una cita para realizar una pre-revisión antes de radicar nuevamente su proyecto, escribiendo al correo ConexionesCundinamarcaSur@enel.com "]
[null,"TOLIMA","IBAGUE","CUNDINAMARCA SUR","ConexionesCundinamarcaSur@enel.com","Se recomienda agendar una cita para realizar una pre-revisión antes de radicar nuevamente su proyecto, escribiendo al correo ConexionesCundinamarcaSur@enel.com "]